[Event "SVK ECo-C Extraliga 2018-19"]
[Site "Slovakia"]
[Date "2019.04.13"]
[Round "10.5"]
[White "Manik, Mikulas"]
[Black "Pacher, Milan"]
[Result "1/2-1/2"]
[ECO "C67"]
[WhiteElo "2393"]
[BlackElo "2391"]
[Annotator "NA"]
[PlyCount "47"]
[EventDate "2018.11.10"]
[EventType "team-tourn"]
[EventCountry "SVK"]
[SourceTitle "playchess.com"]
[Source "ChessBase"]
[SourceQuality "1"]
[WhiteTeam "Prakovce"]
[BlackTeam "Slovan"]
[TimeControl "40/5400+30:1800+30"]

1. e4 {[%emt 0:00:00]} e5 {[%emt 0:00:00]} 2. Nf3 {[%emt 0:00:00]} Nc6 {[%emt 0:00:00]} 3. Bb5 {[%emt 0:01:20]} Nf6 {[%emt 0:00:40]} 4. O-O {[%emt 0:01:32]} Nxe4 {[%emt 0:00:20]} 5. Re1 {[%emt 0:05:10]} Nd6 {[%emt 0:01:50]} 6. Nxe5 {[%emt 0:00:48]} Be7 {[%emt 0:00:10]} 7. Bf1 {[%emt 0:00:55]} Nxe5 {[%emt 0:00:38]} 8. Rxe5 {[%emt 0:00:04]} O-O {[%emt 0:00:29]} 9. d4 {[%emt 0:04:10]} Bf6 {[%emt 0:04:30]} 10. Re1 {[%emt 0:00:38]} Re8 {[%emt 0:00:28] C67: Ruy Lopez: Berlin Defence: 4 0-0 Nxe4} 11. c3 {[%emt 0:03:35]} Rxe1 {[%emt 0:03:33]} 12. Qxe1 {[%emt 0:00:10]} Ne8 {[%emt 0:00:28]} 13. Bf4 {[%emt 0:03:09]} d5 {[%emt 0:00:26]} 14. Bd3 {[%emt 0:03:10]} g6 {[%emt 0:01:11]} 15. Nd2 {[%emt 0:01:44]} Ng7 {[%emt 0:01:32]} 16. Qe2 {[%emt 0:01:11]} c6 {[%emt 0:01:46]} 17. Re1 {[%emt 0:01:07]} Bf5 {[%emt 0:02:51]} 18. Bxf5 {[%emt 0:05:36]} Nxf5 {[%emt 0:00:03] [#]} 19. Nf3 $146 {[%emt 0:00:06]} Ng7 {[%emt 0:01:58]} 20. Be5 {[%emt 0:01:52]} Ne6 {[%emt 0:01:19]} 21. a4 {[%emt 0:01:54]} a5 {[%emt 0:09:07]} 22. h3 {[%emt 0:00:53]} Kg7 {[%emt 0:01:38]} 23. Kf1 {[%emt 0:06:29]} h5 $11 {[%emt 0:02:19]} 24. Bxf6+ {[%emt 0:00:16]} 1/2-1/2

[Event "SVK ECo-C Extraliga 2018-19"]
[Site "Slovakia"]
[Date "2019.04.13"]
[Round "10.5"]
[White "Hausner, Ivan"]
[Black "Istona, Martin"]
[Result "1-0"]
[ECO "A37"]
[WhiteElo "2349"]
[BlackElo "2269"]
[Annotator "NA"]
[PlyCount "125"]
[EventDate "2018.11.10"]
[EventType "team-tourn"]
[EventCountry "SVK"]
[SourceTitle "playchess.com"]
[Source "ChessBase"]
[SourceQuality "1"]
[WhiteTeam "Liptovska"]
[BlackTeam "Osuske"]
[TimeControl "40/5400+30:1800+30"]

1. c4 {[%emt 0:00:00]} c5 {[%emt 0:00:00]} 2. Nf3 {[%emt 0:00:00]} g6 {[%emt 0:00:08]} 3. g3 {[%emt 0:00:00]} Bg7 {[%emt 0:00:05]} 4. Bg2 {[%emt 0:00:05]} Nc6 {[%emt 0:01:03]} 5. Nc3 {[%emt 0:00:06]} e6 {[%emt 0:00:27]} 6. e3 {[%emt 0:00:33]} Nge7 {[%emt 0:01:28]} 7. d4 {[%emt 0:00:10]} cxd4 {[%emt 0:05:07]} 8. Nxd4 {[%emt 0:00:06]} d5 {[%emt 0:03:07]} 9. cxd5 {[%emt 0:00:18]} Nxd5 {[%emt 0:00:13] A36: Symmetrical English vs ...g6: 4 Bg2 Bg7} (9... Nxd4 10. exd4 Nxd5 11. Nxd5 exd5 12. O-O O-O {½-½ (12) Lupulescu,C (2657)-Leko,P (2720) Porto Carras 2011} 13. Qb3 Qb6 14. Bxd5 Qxb3 15. axb3 Rd8 16. Re1 Bg4 17. Bxb7 Rab8 18. Bg2 Bxd4 19. Bg5 Re8 20. Bd5 Be6 21. Bf4 {½-½ (36) Berg,K (2347)-Krause,B (2407) Germany 2017}) 10. Nxd5 {[%emt 0:00:35]} exd5 {[%emt 0:03:23]} 11. Ne2 $146 {[%emt 0:12:34]} ({Predecessor:} 11. O-O Nxd4 {½-½ (36) Berg,K (2347)-Krause,B (2407) Germany 2017}) 11... d4 {[%emt 0:25:21]} 12. exd4 {[%emt 0:01:25]} Nxd4 {[%emt 0:03:17]} 13. Nxd4 {[%emt 0:05:13]} Qxd4 {[%emt 0:02:17]} 14. Qxd4 {[%emt 0:02:03]} Bxd4 {[%emt 0:00:07]} 15. O-O {[%emt 0:00:13]} O-O {[%emt 0:02:31]} 16. Rd1 {[%emt 0:00:15]} Bg7 {[%emt 0:03:49]} 17. Be3 {[%emt 0:00:48]} Be6 {[%emt 0:06:29]} 18. a4 {[%emt 0:17:46]} a5 {[%emt 0:07:44]} 19. Bd5 {[%emt 0:02:28]} Bxd5 {[%emt 0:15:45]} 20. Rxd5 {[%emt 0:00:05]} Bxb2 {[%emt 0:00:09]} 21. Rb1 {[%emt 0:02:28]} Bc3 {[%emt 0:00:16]} 22. Rxb7 {[%emt 0:00:23]} Rfb8 {[%emt 0:13:09]} 23. Rc7 {[%emt 0:01:18]} Rc8 {[%emt 0:00:47]} 24. Rcd7 {[%emt 0:05:49]} Kg7 {[%emt 0:02:20]} 25. Rb5 $14 {[%emt 0:08:21]} Rab8 {[%emt 0:01:30]} 26. Ra7 {[%emt 0:01:17]} h5 {[%emt 0:01:29]} 27. Kg2 {[%emt 0:04:53]} Ra8 {[%emt 0:00:27]} 28. Rab7 {[%emt 0:00:36]} Bf6 {[%emt 0:00:57]} 29. Ba7 {[%emt 0:03:46]} Bc3 {[%emt 0:00:31]} 30. Rd5 {[%emt 0:01:33]} Rd8 {[%emt 0:00:29]} 31. Rdb5 {[%emt 0:01:44]} Rdc8 {[%emt 0:00:11]} 32. Rb3 {[%emt 0:01:33]} Kg8 {[%emt 0:00:50]} 33. Rd7 {[%emt 0:00:42]} Bb4 {[%emt 0:00:26]} 34. Rf3 {[%emt 0:00:25]} Rf8 {[%emt 0:00:23]} 35. Be3 {[%emt 0:00:36]} Rad8 {[%emt 0:00:32]} 36. Rfxf7 {[%emt 0:00:19]} Rxf7 {[%emt 0:00:38]} 37. Rxd8+ {[%emt 0:01:29]} Rf8 {[%emt 0:00:01]} 38. Rxf8+ {[%emt 0:01:08]} Kxf8 {[%emt 0:00:04]} 39. Kf3 {[%emt 0:00:05]} Kf7 {[%emt 0:00:20]} 40. Ke4 {[%emt 0:00:10]} Ke6 {[%emt 0:00:21]} 41. Bf4 {[%emt 0:33:56]} Be1 {[%emt 0:01:26]} 42. f3 {[%emt 0:00:00]} Bb4 {[%emt 0:04:00]} 43. Be5 {[%emt 0:00:00]} Be1 {[%emt 0:07:52]} 44. h3 {[%emt 0:00:00]} Bb4 {[%emt 0:02:24]} 45. g4 {[%emt 0:00:00]} hxg4 {[%emt 0:00:06]} 46. hxg4 {[%emt 0:00:00]} Be1 {[%emt 0:00:30]} 47. f4 {[%emt 0:00:00]} Bb4 {[%emt 0:00:04]} 48. f5+ {[%emt 0:00:00]} gxf5+ {[%emt 0:00:06]} 49. gxf5+ {[%emt 0:00:00]} Kd7 {[%emt 0:00:16]} 50. Kd5 {[%emt 0:00:00]} Be7 {[%emt 0:03:57]} 51. Bc3 {[%emt 0:00:00]} Bd8 {[%emt 0:08:35]} 52. Kc5 {[%emt 0:00:00]} Kc8 {[%emt 0:00:27]} 53. Kb5 {[%emt 0:00:00]} Kb7 {[%emt 0:01:01]} 54. Bxa5 {[%emt 0:00:00]} Bf6 {[%emt 0:00:05]} 55. Bb4 {[%emt 0:00:00]} Kc7 {[%emt 0:02:06]} 56. Kc5 {[%emt 0:00:00]} Kb7 {[%emt 0:03:11]} 57. Kd6 {[%emt 0:00:00]} Ka6 {[%emt 0:01:35]} 58. Ke6 {[%emt 0:00:00]} Bb2 {[%emt 0:00:53]} 59. Bd6 {[%emt 0:00:00]} Ka5 {[%emt 0:00:05]} 60. Be5 {[%emt 0:00:00]} Bc1 {[%emt 0:00:17]} 61. f6 {[%emt 0:00:00]} Kxa4 {[%emt 0:00:19]} 62. f7 {[%emt 0:00:00]} Bh6 {[%emt 0:00:08]} 63. Bd6 {[%emt 0:00:00]} 1-0

[Event "SVK ECo-C Extraliga 2018-19"]
[Site "Slovakia"]
[Date "2019.04.13"]
[Round "10.5"]
[White "Kostelny, Jozef"]
[Black "Stohl, Igor"]
[Result "1/2-1/2"]
[ECO "E45"]
[WhiteElo "2220"]
[BlackElo "2489"]
[Annotator "ChessBase"]
[PlyCount "49"]
[EventDate "2018.11.10"]
[EventType "team-tourn"]
[EventCountry "SVK"]
[SourceTitle "playchess.com"]
[Source "ChessBase"]
[SourceQuality "1"]
[WhiteTeam "Zilina"]
[BlackTeam "Modra"]
[TimeControl "40/5400+30:1800+30"]

{[%evp 0,3,30,30,32,0] [WhiteElo "2220"] [WhiteCountry ""] [WhiteFideId "14903458"] [BlackElo "2489"] [BlackCountry ""] [BlackFideId "14900025"]} 1. d4 Nf6 2. c4 e6 3. Nc3 Bb4 4. e3 b6 5. Nge2 Ba6 6. a3 Be7 7. Nf4 d5 8. b3 O-O 9. Bd3 dxc4 10. bxc4 Nc6 11. O-O Na5 12. Qa4 c5 13. Rd1 cxd4 14. exd4 Bxc4 15. Bxc4 Qc8 16. Ncd5 exd5 17. Bxd5 Nxd5 18. Nxd5 Bd6 19. Bf4 Qc4 20. Qxc4 Nxc4 21. Bxd6 Nxd6 22. Rac1 Rfd8 23. Ne7+ Kf8 24. Nc6 Re8 25. Kf1 1/2-1/2

[Event "SVK ECo-C Extraliga 2018-19"]
[Site "Slovakia"]
[Date "2019.04.13"]
[Round "10.5"]
[White "Szegi, Tamas"]
[Black "Piesik, Piotr"]
[Result "0-1"]
[ECO "B90"]
[WhiteElo "2195"]
[BlackElo "2420"]
[Annotator "NA"]
[PlyCount "72"]
[EventDate "2018.11.10"]
[EventType "team-tourn"]
[EventCountry "SVK"]
[SourceTitle "playchess.com"]
[Source "ChessBase"]
[SourceQuality "1"]
[WhiteTeam "Komarno"]
[BlackTeam "Dubnica"]
[TimeControl "40/5400+30:1800+30"]

1. e4 {[%emt 0:00:06]} c5 {[%emt 0:00:04]} 2. Nf3 {[%emt 0:03:14]} d6 {[%emt 0:00:41]} 3. d4 {[%emt 0:00:11]} cxd4 {[%emt 0:00:04]} 4. Nxd4 {[%emt 0:00:05]} Nf6 {[%emt 0:00:05]} 5. Nc3 {[%emt 0:00:06]} a6 {[%emt 0:00:02]} 6. Be3 {[%emt 0:02:17]} e5 {[%emt 0:05:43]} 7. Nde2 {[%emt 0:00:42] B90: Sicilian Najdorf: Unusual White 6th moves, 6 Be3 Ng4 and 6 Be3 e5} (7. Nf3 Qc7 8. a4 Be7 9. Be2 O-O 10. O-O h6 11. a5 Be6 12. Nd5 Nxd5 13. exd5 Bf5 14. c4 Nd7 15. b4 Rac8 16. Rc1 Bh7 17. Nd2 f5 18. f3 Bg5 19. Qb3 Kh8 {½-½ (41) Anand,V (2773)-Korobov,A (2698) St Petersburg 2018}) 7... Be7 {[%emt 0:05:01]} 8. Qd2 {[%emt 0:05:55]} Ng4 {[%emt 0:10:51]} 9. Nd5 $146 {[%emt 0:02:06]} ({Predecessor:} 9. O-O-O Be6 10. Kb1 O-O 11. f4 Nxe3 12. Qxe3 Nc6 13. f5 Bc4 14. Ng3 b5 {1-0 (27) Kargin,A (2386)-Guerrero Sierra,J (2196) Moscow 2008}) 9... Nxe3 {[%emt 0:10:21]} 10. fxe3 {[%emt 0:06:15]} Bg5 {[%emt 0:08:46]} 11. O-O-O {[%emt 0:10:35]} O-O {[%emt 0:06:51]} 12. Ng1 {[%emt 0:20:15]} (12. g3 $14) 12... Nd7 {[%emt 0:05:40]} 13. Nf3 {[%emt 0:05:11]} Bh6 {[%emt 0:09:32]} 14. Kb1 {[%emt 0:12:32]} Nc5 {[%emt 0:07:30]} 15. Nc3 {[%emt 0:01:16]} Be6 {[%emt 0:00:31]} 16. Qxd6 {[%emt 0:06:57]} Qxd6 {[%emt 0:02:52]} 17. Rxd6 {[%emt 0:00:06]} Rfd8 {[%emt 0:06:39]} 18. Rxd8+ {[%emt 0:01:01]} Rxd8 {[%emt 0:00:01]} 19. Be2 $11 {[%emt 0:03:13]} f6 {[%emt 0:02:38]} 20. b4 {[%emt 0:02:08]} Nd7 {[%emt 0:00:14]} 21. Rd1 {[%emt 0:01:05]} Bxe3 {[%emt 0:02:37]} 22. Nd5 {[%emt 0:00:33]} Ba7 {[%emt 0:01:34]} 23. Nc7 {[%emt 0:03:59]} Bf7 {[%emt 0:00:38]} 24. b5 {[%emt 0:02:15]} a5 {[%emt 0:02:49]} 25. Nxe5 {[%emt 0:01:44]} fxe5 {[%emt 0:00:40]} 26. Bg4 {[%emt 0:00:05]} Bb6 {[%emt 0:03:20]} 27. Ne6 {[%emt 0:00:39]} Re8 {[%emt 0:00:58]} 28. Nxg7 {[%emt 0:01:03]} Kxg7 {[%emt 0:00:07]} 29. Rxd7 {[%emt 0:00:05]} Bc5 {[%emt 0:00:14]} 30. Rxb7 {[%emt 0:00:31]} Re7 {[%emt 0:00:16]} 31. Rxe7 {[%emt 0:01:30]} Bxe7 {[%emt 0:00:05]} 32. Bf5 {[%emt 0:00:46]} Bc5 {[%emt 0:00:14]} 33. a4 {[%emt 0:01:09]} h6 {[%emt 0:00:15]} 34. g4 {[%emt 0:00:48]} Kf6 {[%emt 0:00:43]} 35. h4 {[%emt 0:01:17]} Bf2 {[%emt 0:00:16]} 36. h5 {[%emt 0:00:29]} Bc4 {[%emt 0:02:07]} 0-1

[Event "SVK ECo-C Extraliga 2018-19"]
[Site "Slovakia"]
[Date "2019.04.13"]
[Round "10.6"]
[White "Bagi, Mate"]
[Black "Krak, Tomas"]
[Result "1-0"]
[ECO "B38"]
[WhiteElo "2452"]
[BlackElo "2275"]
[Annotator "ChessBase"]
[PlyCount "86"]
[EventDate "2018.11.10"]
[EventType "team-tourn"]
[EventCountry "SVK"]
[SourceTitle "playchess.com"]
[Source "ChessBase"]
[SourceQuality "1"]
[WhiteTeam "Streda"]
[BlackTeam "Snina"]
[TimeControl "40/5400+30:1800+30"]

1. e4 {[%emt 0:00:00]} c5 {[%emt 0:00:00]} 2. Nf3 {[%emt 0:00:00]} Nc6 {[%emt 0:00:09]} 3. d4 {[%emt 0:00:00]} cxd4 {[%emt 0:00:16]} 4. Nxd4 {[%emt 0:00:00]} g6 {[%emt 0:00:26]} 5. c4 {[%emt 0:00:29]} Bg7 {[%emt 0:00:28]} 6. Be3 {[%emt 0:00:10]} d6 {[%emt 0:00:12]} 7. Nc3 {[%emt 0:00:14]} Qb6 {[%emt 0:00:17]} 8. Nb3 {[%emt 0:04:08]} Bxc3+ {[%emt 0:01:06]} 9. bxc3 {[%emt 0:00:09]} Qc7 {[%emt 0:00:16]} 10. c5 {[%emt 0:08:39]} dxc5 {[%emt 0:00:07]} 11. Nxc5 {[%emt 0:00:55]} Nf6 {[%emt 0:02:37]} 12. f3 {[%emt 0:03:05]} b6 {[%emt 0:01:04]} 13. Nb3 {[%emt 0:01:41]} O-O {[%emt 0:00:15]} 14. Be2 {[%emt 0:03:29]} Ne5 {[%emt 0:04:24]} 15. O-O {[%emt 0:05:03]} Be6 {[%emt 0:05:19]} 16. Bd4 {[%emt 0:02:37]} Nc4 {[%emt 0:16:31]} 17. Qc1 {[%emt 0:04:07]} a5 {[%emt 0:11:22]} 18. Qh6 {[%emt 0:05:13]} a4 {[%emt 0:05:45]} 19. Nc1 {[%emt 0:00:14]} Na3 {[%emt 0:00:43]} 20. Nd3 {[%emt 0:03:48]} Ra5 {[%emt 0:05:52]} 21. f4 {[%emt 0:07:01]} Nc2 {[%emt 0:06:17]} 22. Rac1 {[%emt 0:11:10]} Nxd4 {[%emt 0:01:35]} 23. cxd4 {[%emt 0:00:06]} Qd8 {[%emt 0:05:08]} 24. d5 {[%emt 0:01:04]} Bg4 {[%emt 0:05:43]} 25. Bxg4 {[%emt 0:01:27]} Nxg4 {[%emt 0:00:06]} 26. Qh3 {[%emt 0:00:46]} f5 {[%emt 0:05:30]} 27. Nb4 {[%emt 0:04:12]} Rc5 {[%emt 0:05:40]} 28. Nc6 {[%emt 0:03:37]} Qc7 {[%emt 0:04:49]} 29. Rxc5 {[%emt 0:04:12]} bxc5 {[%emt 0:00:05]} 30. e5 {[%emt 0:03:13]} c4 {[%emt 0:06:30]} 31. Qc3 {[%emt 0:03:26]} Qb6+ {[%emt 0:00:48]} 32. Nd4 {[%emt 0:00:08]} Rd8 {[%emt 0:04:28]} 33. h3 {[%emt 0:00:45]} Rxd5 {[%emt 0:00:20]} 34. Rd1 {[%emt 0:00:05]} Nh6 {[%emt 0:01:35]} 35. Qxc4 {[%emt 0:00:10]} e6 {[%emt 0:00:38]} 36. Qxa4 {[%emt 0:00:43]} Kf7 {[%emt 0:00:49]} 37. Kh2 {[%emt 0:00:57]} Ng8 {[%emt 0:00:10]} 38. Nf3 {[%emt 0:01:20]} Rxd1 {[%emt 0:00:41]} 39. Qxd1 {[%emt 0:00:05]} Ne7 {[%emt 0:00:45]} 40. Ng5+ {[%emt 0:00:48]} Ke8 {[%emt 0:00:07]} 41. Qa4+ {[%emt 0:31:27]} Kd8 {[%emt 0:07:33]} 42. Nxh7 {[%emt 0:00:00]} Nd5 {[%emt 0:04:33]} 43. Nf6 {[%emt 0:00:00]} Qa7 1-0

[Event "SVK ECo-C Extraliga 2018-19"]
[Site "Slovakia"]
[Date "2019.04.13"]
[Round "10.6"]
[White "Bures, Jaroslav"]
[Black "Mikrut, Dariusz"]
[Result "1/2-1/2"]
[ECO "C77"]
[WhiteElo "2384"]
[BlackElo "2375"]
[Annotator "ChessBase"]
[PlyCount "36"]
[EventDate "2018.11.10"]
[EventType "team-tourn"]
[EventCountry "SVK"]
[SourceTitle "playchess.com"]
[Source "ChessBase"]
[SourceQuality "1"]
[WhiteTeam "Slovan"]
[BlackTeam "Prakovce"]
[TimeControl "40/5400+30:1800+30"]

1. e4 {[%emt 0:00:00]} e5 {[%emt 0:00:06]} 2. Nf3 {[%emt 0:00:00]} Nc6 {[%emt 0:00:13]} 3. Bb5 {[%emt 0:00:00]} a6 {[%emt 0:00:18]} 4. Ba4 {[%emt 0:00:00]} Nf6 {[%emt 0:00:13]} 5. Qe2 {[%emt 0:02:12]} b5 {[%emt 0:01:04]} 6. Bb3 {[%emt 0:00:05]} Be7 {[%emt 0:01:48]} 7. Nc3 {[%emt 0:05:27]} d6 {[%emt 0:00:58]} 8. a4 {[%emt 0:04:57]} Bg4 {[%emt 0:16:24]} 9. axb5 {[%emt 0:01:30]} Nd4 {[%emt 0:01:49]} 10. Qc4 {[%emt 0:10:43]} Be6 {[%emt 0:04:07]} 11. Nd5 {[%emt 0:00:16]} Bxd5 {[%emt 0:03:31]} 12. exd5 {[%emt 0:00:06]} axb5 {[%emt 0:00:59]} 13. Rxa8 {[%emt 0:00:04]} Qxa8 {[%emt 0:02:47]} 14. Qd3 {[%emt 0:01:10]} Nxb3 {[%emt 0:16:38]} 15. Qxb5+ {[%emt 0:00:07]} c6 {[%emt 0:00:04]} 16. Qxb3 {[%emt 0:00:13]} Nxd5 {[%emt 0:01:35]} 17. d3 {[%emt 0:01:34]} O-O {[%emt 0:02:30]} 18. c3 {[%emt 0:00:59]} Qa6 {[%emt 0:03:49]} 1/2-1/2

[Event "SVK ECo-C Extraliga 2018-19"]
[Site "Slovakia"]
[Date "2019.04.13"]
[Round "10.6"]
[White "Maslik, Miroslav"]
[Black "Kopera, Michal"]
[Result "1-0"]
[ECO "A11"]
[WhiteElo "2366"]
[BlackElo "2136"]
[Annotator "NA"]
[PlyCount "63"]
[EventDate "2018.11.10"]
[EventType "team-tourn"]
[EventCountry "SVK"]
[SourceTitle "playchess.com"]
[Source "ChessBase"]
[SourceQuality "1"]
[WhiteTeam "Modra"]
[BlackTeam "Zilina"]
[TimeControl "40/5400+30:1800+30"]

1. Nf3 {[%emt 0:00:00]} Nf6 {[%emt 0:00:00]} 2. g3 {[%emt 0:00:00]} d5 {[%emt 0:02:15]} 3. Bg2 {[%emt 0:00:00]} c6 {[%emt 0:00:30]} 4. O-O {[%emt 0:00:00]} Bg4 {[%emt 0:02:31]} 5. c4 {[%emt 0:00:04]} e6 {[%emt 0:04:23]} 6. d3 {[%emt 0:00:39]} Bxf3 {[%emt 0:03:08] A11: English Opening: 1...c6} 7. Bxf3 {[%emt 0:00:02]} Be7 {[%emt 0:01:28]} 8. cxd5 {[%emt 0:03:52]} exd5 {[%emt 0:02:08]} 9. e4 {[%emt 0:02:00]} Nbd7 {[%emt 0:04:49]} 10. Nc3 $146 {[%emt 0:00:55]} ({Predecessor:} 10. Bf4 O-O 11. Nc3 dxe4 12. dxe4 {1-0 (40) Schnitzspan,L (2317)-Reh,S (2019) Germany 2015}) 10... Ne5 {[%emt 0:04:40]} 11. Bg2 {[%emt 0:02:06]} dxe4 {[%emt 0:02:10]} 12. dxe4 {[%emt 0:00:06]} O-O {[%emt 0:02:22]} 13. Qb3 {[%emt 0:04:33]} Qb6 {[%emt 0:03:47]} 14. Qc2 {[%emt 0:02:13]} Rfd8 {[%emt 0:13:14]} 15. Be3 {[%emt 0:04:13]} Qa5 {[%emt 0:03:23]} 16. Rad1 {[%emt 0:11:22]} Rxd1 {[%emt 0:15:51]} 17. Rxd1 {[%emt 0:01:02]} Neg4 {[%emt 0:02:44] [#]} 18. Bd4 $1 {[%emt 0:02:06]} c5 {[%emt 0:04:45]} 19. Bxf6 {[%emt 0:00:55]} Bxf6 {[%emt 0:00:09]} 20. h3 {[%emt 0:01:49]} Ne5 $16 {[%emt 0:01:13]} 21. f4 {[%emt 0:13:24]} Nc4 {[%emt 0:03:36]} 22. Nd5 {[%emt 0:03:37]} Qxa2 {[%emt 0:05:21]} 23. Nxf6+ {[%emt 0:00:25]} gxf6 {[%emt 0:00:02]} 24. Qc3 {[%emt 0:01:07]} Qa6 {[%emt 0:10:36]} 25. b3 {[%emt 0:10:50]} Nd6 {[%emt 0:00:55]} 26. Qxf6 {[%emt 0:05:26]} Ne8 {[%emt 0:00:12]} 27. Qe7 {[%emt 0:06:43]} c4 {[%emt 0:05:02]} 28. bxc4 {[%emt 0:04:34]} Qxc4 {[%emt 0:00:34]} 29. Qg5+ {[%emt 0:00:41]} Kf8 {[%emt 0:00:38]} 30. Rd5 {[%emt 0:01:09]} Qc3 {[%emt 0:01:01]} 31. Rd7 {[%emt 0:01:51]} Rc8 {[%emt 0:00:39]} 32. Qe7+ {[%emt 0:00:11]} 1-0

[Event "SVK ECo-C Extraliga 2018-19"]
[Site "Slovakia"]
[Date "2019.04.13"]
[Round "10.6"]
[White "Jurcik, Martin"]
[Black "Chovan, Milan"]
[Result "1-0"]
[ECO "C45"]
[WhiteElo "2335"]
[BlackElo "2328"]
[Annotator "NA"]
[PlyCount "115"]
[EventDate "2018.11.10"]
[EventType "team-tourn"]
[EventCountry "SVK"]
[SourceTitle "playchess.com"]
[Source "ChessBase"]
[SourceQuality "1"]
[WhiteTeam "Dunajov"]
[BlackTeam "Podhajska"]
[TimeControl "40/5400+30:1800+30"]

1. e4 {[%emt 0:00:00]} e5 {[%emt 0:00:00]} 2. Nf3 {[%emt 0:00:44]} Nc6 {[%emt 0:00:00]} 3. d4 {[%emt 0:01:06]} exd4 {[%emt 0:00:09]} 4. Nxd4 {[%emt 0:00:14]} Bc5 {[%emt 0:01:27]} 5. Nb3 {[%emt 0:01:22]} Bb6 {[%emt 0:00:15]} 6. Nc3 {[%emt 0:01:18]} Nf6 {[%emt 0:00:23]} 7. Bg5 {[%emt 0:06:00]} h6 {[%emt 0:01:36]} 8. Bh4 {[%emt 0:00:58]} O-O {[%emt 0:00:14] C45: Scotch Game} 9. Qe2 {[%emt 0:03:31]} a5 {[%emt 0:00:50]} 10. a4 {[%emt 0:02:32]} Nd4 {[%emt 0:00:16]} 11. Qd3 {[%emt 0:02:28]} Nxb3 {[%emt 0:00:12]} 12. cxb3 {[%emt 0:00:02]} c6 {[%emt 0:00:16]} 13. O-O-O {[%emt 0:05:08]} d5 {[%emt 0:02:48]} 14. exd5 {[%emt 0:02:58]} cxd5 {[%emt 0:00:08] [#]} 15. Qc2 $146 {[%emt 0:03:14]} d4 {[%emt 0:02:50]} 16. Bc4 {[%emt 0:08:19]} Be6 {[%emt 0:01:46]} 17. Bxe6 {[%emt 0:03:15]} fxe6 {[%emt 0:00:08]} 18. Kb1 {[%emt 0:00:18]} Qc7 {[%emt 0:07:34]} 19. Nb5 {[%emt 0:02:42]} Qxc2+ {[%emt 0:01:57]} 20. Kxc2 {[%emt 0:00:02]} Ng4 {[%emt 0:06:53]} 21. Rhe1 {[%emt 0:01:57]} Nxf2 {[%emt 0:02:12]} 22. Rd2 {[%emt 0:01:54]} d3+ {[%emt 0:13:45]} 23. Kb1 {[%emt 0:02:48]} Rac8 {[%emt 0:08:22]} 24. Rxe6 {[%emt 0:05:32]} Rc6 $14 {[%emt 0:00:25]} 25. Rxc6 {[%emt 0:09:44]} bxc6 {[%emt 0:01:11]} 26. Bxf2 {[%emt 0:00:08]} Bxf2 {[%emt 0:01:06]} 27. Nd6 {[%emt 0:00:58]} Rd8 {[%emt 0:04:50]} 28. Rxf2 {[%emt 0:03:07]} Rxd6 {[%emt 0:00:46]} 29. Kc1 {[%emt 0:00:01]} g5 {[%emt 0:05:50]} 30. Kd2 {[%emt 0:00:50]} Kg7 {[%emt 0:02:27]} 31. Rf5 {[%emt 0:16:17]} Kg6 {[%emt 0:07:23]} 32. Rxa5 {[%emt 0:01:22]} Rf6 {[%emt 0:00:07]} 33. Rc5 {[%emt 0:00:36]} Rf2+ {[%emt 0:00:39]} 34. Kxd3 {[%emt 0:00:06]} Rxb2 {[%emt 0:00:32]} 35. Rxc6+ {[%emt 0:01:19]} Kh5 {[%emt 0:00:30]} 36. Rc2 {[%emt 0:00:23]} Rxb3+ {[%emt 0:00:09]} 37. Kc4 {[%emt 0:00:01]} Ra3 {[%emt 0:02:21]} 38. Kb4 {[%emt 0:00:07]} Ra1 {[%emt 0:00:05]} 39. a5 {[%emt 0:04:49]} Kg6 {[%emt 0:02:04]} 40. Kb5 {[%emt 0:02:02]} Kf7 {[%emt 0:01:09]} 41. Re2 {[%emt 0:37:47]} Rb1+ {[%emt 0:33:36]} 42. Kc6 {[%emt 0:00:09]} Rc1+ {[%emt 0:00:11]} 43. Kb7 {[%emt 0:00:10]} Rb1+ {[%emt 0:00:12]} 44. Ka7 {[%emt 0:00:14]} g4 {[%emt 0:00:39]} 45. a6 {[%emt 0:00:42]} h5 {[%emt 0:00:28]} 46. Ka8 {[%emt 0:00:38]} Rb3 {[%emt 0:01:00]} 47. a7 {[%emt 0:01:43]} Rb5 {[%emt 0:00:40]} 48. g3 {[%emt 0:00:00]} Rb1 {[%emt 0:00:00]} 49. Re5 {[%emt 0:00:00]} Rb2 {[%emt 0:00:00]} 50. Rxh5 {[%emt 0:00:00]} Ke7 {[%emt 0:00:00]} 51. Rh8 {[%emt 0:00:00]} Kd6 {[%emt 0:00:00]} 52. Rb8 {[%emt 0:00:00]} Rxh2 {[%emt 0:00:00]} 53. Kb7 {[%emt 0:00:00]} Rb2+ {[%emt 0:00:00]} 54. Kc8 {[%emt 0:00:00]} Rc2+ {[%emt 0:00:00]} 55. Kd8 {[%emt 0:00:00]} Rh2 {[%emt 0:00:00]} 56. Rb6+ {[%emt 0:00:00]} Kc5 {[%emt 0:00:00]} 57. Rc6+ {[%emt 0:00:00]} Kd5 {[%emt 0:00:00]} 58. Ra6 {[%emt 0:00:00]} 1-0